fUSD/lending_fUSD_20250306
["ID","MTS","AMOUNT","RATE_DAILY","PERIOD"]
[355516612,1741227047379,-500.0,0.00011495,2]
[355516613,1741227047389,-500.0,0.00011495,2]
[355516614,1741227047398,-500.0,0.00011495,2]
[355516615,1741227047408,-508.34471194,0.00011495,2]
[355516616,1741227047417,-500.0,0.00011495,2]
[355516617,1741227047426,-500.0,0.00011495,2]
[355516618,1741227047435,-500.0,0.00011495,2]
[355516619,1741227047444,-500.0,0.00011495,2]
[355516620,1741227047453,-679.26,0.00011495,2]
[355516621,1741227047463,-500.0,0.00011495,2]
[355516622,1741227047472,-500.0,0.00011495,2]
[355516623,1741227047481,-500.0,0.00011495,2]
[355516624,1741227047490,-500.0,0.00011495,2]
[355516625,1741227047498,-500.0,0.00011495,2]
[355516626,1741227047507,-745.8,0.00011495,2]
[355516627,1741227047516,-500.0,0.00011495,2]
[355516628,1741227047525,-500.0,0.00011495,2]
[355516629,1741227047534,-500.0,0.00011495,2]
[355516630,1741227047543,-500.0,0.00011495,2]
[355516631,1741227047552,-505.82661345,0.00011495,2]
[355516632,1741227047561,-507.22122526,0.00011495,2]
[355516633,1741227047570,-620.18,0.00011495,2]
[355516634,1741227047583,-497.44079497,0.00011495,2]
[355516635,1741227047592,-500.0,0.00011495,2]
[355516636,1741227047601,-500.0,0.00011495,2]
[355516637,1741227047608,-506.78948593,0.00011495,2]
[355516638,1741227047615,-500.0,0.00011495,2]
[355516639,1741227047623,-510.38677264,0.00011495,2]
[355516640,1741227047631,-585.02,0.00011495,2]
[355516641,1741227047641,-500.0,0.00011495,2]
[355516642,1741227047650,-500.0,0.00011495,2]
[355516643,1741227047659,-500.0,0.00011495,2]
[355516644,1741227047669,-500.0,0.00011495,2]
[355516645,1741227047679,-530.02212821,0.00011495,2]
[355516646,1741227047688,-500.0,0.00011495,2]
[355516647,1741227047697,-500.0,0.00011495,2]
[355516648,1741227047706,-500.0,0.00011495,2]
[355516649,1741227047718,-500.0,0.00011495,2]
[355516650,1741227047727,-204.20991511,0.00011495,2]
[355516651,1741227047735,-500.0,0.00011495,2]
[355516652,1741227047744,-500.0,0.00011495,2]
[355516653,1741227047753,-500.0,0.00011495,2]
[355516654,1741227047762,-508.77333169,0.00011495,2]
[355516655,1741227047771,-505.01257431,0.00011495,2]
[355516656,1741227047779,-500.0,0.00011495,2]
[355516657,1741227047788,-500.0,0.00011495,2]
[355516658,1741227047797,-500.0,0.00011495,2]
[355516659,1741227047806,-500.0,0.00011495,2]
[355516660,1741227047815,-500.0,0.00011495,2]
[355516661,1741227047824,-471.7023956,0.00011495,2]
[355516662,1741227048029,-28.2976044,0.00011495,2]
[355516663,1741227048039,-500.0,0.00011495,2]
[355516664,1741227048048,-500.0,0.00011495,2]
[355516665,1741227048058,-500.0,0.00011495,2]
[355516666,1741227048067,-500.0,0.00011495,2]
[355516667,1741227048079,-500.0,0.00011495,2]
[355516668,1741227048089,-500.0,0.00011495,2]
[355516669,1741227048099,-507.83225454,0.00011495,2]
[355516670,1741227048108,-500.0,0.00011495,2]
[355516671,1741227048117,-500.0,0.00011495,2]
[355516672,1741227048127,-500.0,0.00011495,2]
[355516673,1741227048136,-500.0,0.00011495,2]
[355516674,1741227048145,-500.0,0.00011495,2]
[355516675,1741227048155,-525.49,0.00011495,2]
[355516676,1741227048165,-612.45,0.00011495,2]
[355516677,1741227048174,-500.0,0.00011495,2]
[355516678,1741227048184,-506.36876786,0.00011495,2]
[355516679,1741227048196,-446.988412,0.00011495,2]
[355516680,1741227048209,-53.011588,0.00011495,2]
[355516681,1741227048218,-1026.96,0.00011495,2]
[355516682,1741227048227,-574.03,0.00011495,2]
[355516683,1741227048237,-500.0,0.00011495,2]
[355516684,1741227048246,-507.5920942,0.00011495,2]
[355516685,1741227048255,-500.0,0.00011495,2]
[355516686,1741227048264,-500.0,0.00011495,2]
[355516687,1741227048274,-500.0,0.00011495,2]
[355516688,1741227048282,-402.2063178,0.00011495,2]
[355516689,1741227048366,-97.7936822,0.00011495,2]
[355516690,1741227048375,-506.50007303,0.00011495,2]
[355516691,1741227048384,-500.0,0.00011495,2]
[355516692,1741227048394,-508.69515114,0.00011495,2]
[355516693,1741227048403,-500.0,0.00011495,2]
[355516694,1741227048412,-500.0,0.00011495,2]
[355516695,1741227048422,-500.0,0.00011495,2]
[355516696,1741227048431,-500.0,0.00011495,2]
[355516697,1741227048440,-500.0,0.00011495,2]
[355516698,1741227048449,-500.0,0.00011495,2]
[355516699,1741227048459,-508.77,0.00011495,2]
[355516700,1741227048468,-500.0,0.00011495,2]
[355516701,1741227048477,-500.0,0.00011495,2]
[355516702,1741227048487,-500.0,0.00011495,2]
[355516703,1741227048496,-166.0,0.00011495,3]
[355516704,1741227048506,-500.0,0.00011495,2]
[355516705,1741227048515,-500.0,0.00011495,2]
[355516706,1741227048525,-500.0,0.00011495,2]
[355516707,1741227048535,-632.76,0.00011495,2]
[355516708,1741227048545,-500.0,0.00011495,2]
[355516709,1741227048555,-1246.56868,0.00011495,2]
[355516710,1741227048565,-144346.01241364,0.00011496,2]
[355516711,1741227048577,-51995.000003,0.00011496,2]
[355516712,1741227048591,-864.999092,0.00011496,2]
[355516713,1741227048603,-52793.98849136,0.00011496,2]
[355516714,1741227048613,-172.183,0.00011496,2]
[355516715,1741227048623,-172.183,0.00011496,2]
[355516716,1741227048632,-500.0,0.00011497,2]
[355516717,1741227048643,-795.289,0.00011499,2]
[355516718,1741227048653,-2051.58,0.00011499,2]
[355516719,1741227048663,-28514.77650863,0.00011499,2]
[355516720,1741227048676,-2770.199998,0.00011499,2]
[355516721,1741227048688,-4571.0,0.00011499,2]
[355516722,1741227578202,218.51,8.684e-05,2]
[355516723,1741227779335,260.0,0.0002,120]
[355516728,1741228105319,237.26317107,0.000201,120]
[355516741,1741228231778,-200.0,0.00010257,2]
[355516742,1741228231788,-136.73665268,0.00010346,7]
[355516743,1741228231800,-13.26334732,0.00010346,7]
[355516744,1741228231816,-187.33,0.00010395,2]
[355516745,1741228231826,-158.84549988,0.00010527,2]
[355516746,1741228231878,-141.15450012,0.00010527,2]
[355516747,1741228231889,-365.99049988,0.00010528,2]
[355516748,1741228231901,-6655.20901477,0.00010528,2]
[355516749,1741228231913,-983.94936565,0.00010528,2]
[355516750,1741228231924,-2412.59770809,0.00010528,2]
[355516751,1741228231936,-915.6071618,0.00010528,2]
[355516752,1741228231958,-4208.01786348,0.00010528,2]
[355516753,1741228231976,-254.89,0.00010528,2]
[355516754,1741228232097,-436.40005832,0.00010528,2]
[355516775,1741228237856,-4821.67992046,0.00010528,2]
[355516776,1741228237868,-1322.96327026,0.00010528,2]
[355516777,1741228238053,-1144.63046961,0.00010528,2]
[355516778,1741228238066,-378.06466768,0.00010528,2]
[355516779,1741228238075,-250.0,0.00010611,2]
[355516780,1741228238084,-197.84,0.00010611,2]
[355516781,1741228238093,-5072.7,0.00010612,2]
[355516782,1741228238103,-1000.0,0.00010657,2]
[355516783,1741228238112,-200.0,0.000108,3]
[355516784,1741228238121,-500.0,0.000109,3]
[355516785,1741228238131,-170.88,0.00010919,2]
[355516786,1741228238140,-218.51,0.00010948,2]
[355516787,1741228238150,-301.30812378,0.00011,5]
[355516788,1741228238159,-259.8,0.00011,2]
[355516789,1741228238168,-207.07512675,0.00011,2]
[355516790,1741228238178,-207.0751266,0.00011,2]
[355516791,1741228238187,-207.0751266,0.00011048,2]
[355516792,1741228238196,-313.66591192,0.00011073,2]
[355516793,1741228238206,-207.0751266,0.00011122,2]
[355516795,1741228238215,-150.0,0.00011136,2]
[355516796,1741228238225,-502.8438042,0.00011137,2]
[355516797,1741228238235,-667.36,0.00011137,2]
[355516799,1741228238244,-897.92,0.00011137,2]
[355516800,1741228238254,-500.0,0.00011137,2]
[355516801,1741228238263,-500.0,0.00011137,2]
[355516802,1741228238272,-500.0,0.00011137,2]
[355516803,1741228238282,-819.43,0.00011137,2]
[355516805,1741228238292,-500.0,0.00011137,2]
[355516806,1741228238301,-540.87844722,0.00011137,2]
[355516807,1741228238312,-873.27,0.00011137,2]
[355516808,1741228238321,-1000.33,0.00011137,2]
[355516809,1741228238331,-307.8442208,0.00011137,2]
[355516810,1741228238340,-500.0,0.00011137,2]
[355516811,1741228238354,-500.0,0.00011137,2]
[355516812,1741228238364,-1443.02,0.00011137,2]
[355516813,1741228238374,-912.76,0.00011137,2]
[355516814,1741228238384,-785.38,0.00011137,2]
[355516815,1741228238396,-500.0,0.00011137,2]
[355516816,1741228238405,-565.35,0.00011137,2]
[355516817,1741228238415,-114.0598123,0.00011137,2]
[355516818,1741228238428,-667.9801877,0.00011137,2]
[355516819,1741228238438,-514.04,0.00011137,2]
[355516820,1741228238448,-1730.4598123,0.00011137,2]
[355516821,1741228239795,-2771.0501877,0.00011137,2]
[355516822,1741228239805,-500.0,0.00011137,2]
[355516823,1741228239814,-612.24,0.00011137,2]
[355516824,1741228239824,-589.41,0.00011137,2]
[355516825,1741228239833,-500.0,0.00011137,2]
[355516826,1741228239843,-643.13,0.00011137,2]
[355516827,1741228239852,-500.0,0.00011137,2]
[355516828,1741228239862,-811.88,0.00011137,2]
[355516829,1741228239871,-500.0,0.00011137,2]
[355516830,1741228239881,-500.0,0.00011137,2]
[355516831,1741228239892,-505.72817484,0.00011137,2]
[355516832,1741228239901,-644.59,0.00011137,2]
[355516833,1741228239911,-3813.27,0.00011137,2]
[355516834,1741228239920,-790.66,0.00011137,2]
[355516835,1741228239930,-170.90860978,0.00011137,2]
[355516836,1741228239940,-500.0,0.00011137,2]
[355516837,1741228239950,-514.60374144,0.00011137,2]
[355516838,1741228239959,-916.32,0.00011137,2]
[355516839,1741228239969,-5839.64878627,0.00011138,2]
[355516840,1741228239981,-419.72022377,0.00011138,2]
[355516841,1741228239993,-3798.462925,0.00011138,2]
[355516842,1741228240015,-46707.3891852,0.00011138,2]
[355516843,1741228240167,-563.09428992,0.00011138,2]
[355516844,1741228240181,-1284.55966164,0.00011138,2]
[355516845,1741228240194,-1714.05964372,0.00011138,2]
[355516846,1741228240205,-8131.32319995,0.00011138,2]
[355516847,1741228240274,-786.49262927,0.00011138,2]
[355516859,1741228244138,-2500.0,0.00011038,2]
[355516860,1741228244148,-500.0,0.00011137,2]
[355516861,1741228244158,-110388.10103194,0.00011138,2]
[355516862,1741228244170,-348.1657617,0.00011138,2]
[355516863,1741228244182,-374018.16532737,0.00011138,2]
[355516890,1741228244665,-500.0,0.00011138,2]
[355516893,1741228244676,-193150.12160299,0.00011138,2]
[355516895,1741228244686,-151.44159389,0.00011173,2]
[355516897,1741228244696,-207.0751266,0.00011196,2]
[355516899,1741228244705,-12002.25223922,0.000112,2]
[355516901,1741228244714,-265.6026333,0.00011269,2]
[355516902,1741228244723,-207.0751266,0.0001127,2]
[355516903,1741228244732,-150.0,0.00011283,2]
[355516904,1741228244742,-1007.0,0.000113,2]
[355516905,1741228244751,-207.0751266,0.00011344,2]
[355516906,1741228244760,-150.0,0.00011381,2]
[355516907,1741228244769,-207.40330132,0.00011393,2]
[355516937,1741228245756,-419.33669868,0.00011393,2]
[355516940,1741228245766,-213.34538815,0.00011393,2]
[355516945,1741228245848,-337.8255186,0.00011393,2]
[355516946,1741228245858,-171.34542567,0.000114,2]
[355516947,1741228245867,-10096.44549257,0.000114,2]
[355516948,1741228245877,-667.36,0.00011411,2]
[355516949,1741228245887,-897.92,0.00011411,2]
[355516950,1741228245896,-500.0,0.00011411,2]
[355516951,1741228245905,-500.0,0.00011411,2]
[355516952,1741228245915,-500.0,0.00011411,2]
[355516953,1741228245924,-819.43,0.00011411,2]
[355516954,1741228245937,-500.0,0.00011411,2]
[355516955,1741228245946,-873.27,0.00011411,2]
[355516956,1741228245955,-1000.33,0.00011411,2]
[355516957,1741228245965,-500.0,0.00011411,2]
[355516958,1741228245975,-500.0,0.00011411,2]
[355516959,1741228245985,-1443.02,0.00011411,2]
[355516960,1741228245994,-912.76,0.00011411,2]
[355516961,1741228246003,-785.38,0.00011411,2]
[355516962,1741228246012,-500.0,0.00011411,2]
[355516963,1741228246022,-565.35,0.00011411,2]
[355516964,1741228246031,-782.04,0.00011411,2]
[355516965,1741228246042,-514.04,0.00011411,2]
[355516966,1741228246051,-4501.51,0.00011411,2]
[355516967,1741228246061,-500.0,0.00011411,2]
[355516968,1741228246070,-612.24,0.00011411,2]
[355516969,1741228246079,-589.41,0.00011411,2]
[355516970,1741228246089,-324.60444848,0.00011411,2]
[355516971,1741228246098,-643.13,0.00011411,2]
[355516973,1741228246107,-500.0,0.00011411,2]
[355516974,1741228246117,-811.88,0.00011411,2]
[355516976,1741228246127,-500.0,0.00011411,2]
[355516979,1741228246136,-243.71996089,0.00011411,2]
[355516980,1741228246146,-644.59,0.00011411,2]
[355516983,1741228246155,-3813.27,0.00011411,2]
[355516984,1741228246164,-790.66,0.00011411,2]
[355516986,1741228246174,-500.0,0.00011411,2]
[355516987,1741228246183,-916.32,0.00011411,2]
[355516988,1741228246193,-246.83911252,0.00011411,2]
[355516989,1741228246202,-207.0751266,0.00011419,2]
[355516992,1741228246211,-150.0,0.00011434,2]
[355516994,1741228246220,-197.84,0.0001146,2]
[355516996,1741228246231,-15914.4367077,0.0001149,2]
[355516998,1741228246240,-173.68092384,0.00011491,2]
[355517014,1741228246386,-66096.42858727,0.00011491,2]
[355517016,1741228246396,-566.333578,0.00011492,2]
[355517018,1741228246405,-162.484429,0.00011492,2]
[355517020,1741228246414,-1173.32,0.00011492,2]
[355517022,1741228246424,-153.133921,0.00011492,2]
[355517024,1741228246434,-500.0,0.00011492,2]
[355517026,1741228246444,-1499.62,0.00011492,2]
[355517028,1741228246453,-1273.71,0.00011492,2]
[355517030,1741228246462,-970.71,0.00011492,2]
[355517032,1741228246472,-422.117005,0.00011492,2]
[355517034,1741228246481,-2285.17,0.00011492,2]
[355517036,1741228246491,-1225.95,0.00011492,2]
[355517037,1741228246502,-600.61,0.00011492,2]
[355517039,1741228246511,-744.25,0.00011492,2]
[355517041,1741228246520,-946.43,0.00011492,2]
[355517043,1741228246530,-500.0,0.00011492,2]
[355517045,1741228246539,-665.51,0.00011492,2]
[355517047,1741228246552,-671.5,0.00011492,2]
[355517049,1741228246561,-852.76,0.00011492,2]
[355517051,1741228246571,-587.65,0.00011492,2]
[355517053,1741228246580,-551.69,0.00011492,2]
[355517055,1741228246589,-1224.77,0.00011492,2]
[355517057,1741228246599,-2702.52,0.00011492,2]
[355517059,1741228246608,-500.0,0.00011492,2]
[355517061,1741228246617,-629.6,0.00011492,2]
[355517063,1741228246627,-4795.92,0.00011492,2]
[355517065,1741228246637,-592.86,0.00011492,2]
[355517067,1741228246646,-1173.0,0.00011492,2]
[355517069,1741228246655,-722.89,0.00011492,2]
[355517071,1741228246665,-654.2,0.00011492,2]
[355517073,1741228246674,-2933.98,0.00011492,2]
[355517075,1741228246684,-2330.92,0.00011492,2]
[355517078,1741228246698,-914.51,0.00011492,2]
[355517079,1741228246715,-132641.65539635,0.00011492,2]
[355517081,1741228246730,-207.0751266,0.00011493,2]
[355517083,1741228246739,-500.0,0.00011493,2]
[355517085,1741228246749,-500.0,0.00011493,2]
[355517087,1741228246758,-500.0,0.00011493,2]
[355517089,1741228246767,-514.10275741,0.00011493,2]
[355517091,1741228246776,-500.0,0.00011493,2]
[355517093,1741228246786,-509.20070109,0.00011493,2]
[355517095,1741228246798,-500.0,0.00011493,2]
[355517097,1741228246807,-500.0,0.00011493,2]
[355517099,1741228246817,-500.0,0.00011493,2]
[355517101,1741228246826,-500.0,0.00011493,2]
[355517103,1741228246836,-507.54804394,0.00011493,2]
[355517105,1741228246846,-500.0,0.00011493,2]
[355517107,1741228246855,-500.0,0.00011493,2]
[355517109,1741228246867,-511.61985077,0.00011493,2]
[355517111,1741228246879,-509.9125138,0.00011493,2]
[355517112,1741228246889,-500.0,0.00011493,2]
[355517113,1741228246898,-500.0,0.00011493,2]
[355517114,1741228246908,-500.0,0.00011493,2]
[355517115,1741228246917,-500.0,0.00011493,2]
[355517116,1741228246927,-570.6743429,0.00011493,2]
[355517117,1741228246936,-500.0,0.00011493,2]
[355517118,1741228246945,-500.0,0.00011493,2]
[355517119,1741228246954,-500.0,0.00011493,2]
[355517120,1741228246964,-500.0,0.00011493,2]
[355517121,1741228246974,-552.76803022,0.00011493,2]
[355517122,1741228246983,-500.0,0.00011493,2]
[355517123,1741228246992,-500.0,0.00011493,2]
[355517124,1741228247001,-500.0,0.00011493,2]
[355517125,1741228247011,-500.0,0.00011493,2]
[355517126,1741228247022,-516.04542703,0.00011493,2]
[355517127,1741228247031,-619.5,0.00011493,2]
[355517128,1741228247041,-500.0,0.00011493,2]
[355517129,1741228247052,-500.0,0.00011493,2]
[355517130,1741228247062,-500.0,0.00011493,2]
[355517131,1741228247080,-500.0,0.00011493,2]
[355517132,1741228247091,-500.0,0.00011493,2]
[355517133,1741228247100,-517.1113858,0.00011493,2]
[355517134,1741228247109,-309.42401705,0.00011493,2]
[355517135,1741228247119,-500.0,0.00011493,2]
[355517136,1741228247130,-500.0,0.00011493,2]
[355517137,1741228247139,-500.0,0.00011493,2]
[355517138,1741228247148,-411.65142411,0.00011493,2]
[355517139,1741228247158,-500.0,0.00011493,2]
[355517140,1741228247168,-513.37466251,0.00011493,2]
[355517141,1741228247177,-500.0,0.00011493,2]
[355517142,1741228247187,-500.0,0.00011493,2]
[355517143,1741228247196,-512.12660946,0.00011493,2]
[355517144,1741228247205,-503.59,0.00011493,2]
[355517145,1741228247215,-586.93,0.00011493,2]
[355517146,1741228247224,-500.0,0.00011493,2]
[355517147,1741228247233,-515.14067028,0.00011493,2]
[355517148,1741228247243,-300.56788236,0.00011493,2]
[355517149,1741228247254,-500.0,0.00011493,2]
[355517150,1741228247263,-500.0,0.00011493,2]
[355517151,1741228247273,-500.0,0.00011493,2]
[355517152,1741228247283,-500.0,0.00011493,2]
[355517153,1741228247295,-984.17,0.00011493,2]
[355517154,1741228247305,-500.0,0.00011493,2]
[355517155,1741228247314,-175.58139971,0.00011493,2]
[355517156,1741228247324,-500.0,0.00011493,2]
[355517157,1741228247334,-550.11,0.00011493,2]
[355517158,1741228247346,-500.0,0.00011493,2]
[355517159,1741228247357,-500.0,0.00011493,2]
[355517160,1741228247366,-500.0,0.00011493,2]
[355517161,1741228247377,-500.0,0.00011493,2]
[355517162,1741228247388,-385.28746904,0.00011493,2]
[355517163,1741228247398,-514.18413467,0.00011493,2]
[355517164,1741228247408,-500.0,0.00011493,2]
[355517165,1741228247418,-500.0,0.00011493,2]
[355517166,1741228247429,-509.22144728,0.00011493,2]
[355517167,1741228247439,-500.0,0.00011493,2]
[355517168,1741228247449,-459.50884878,0.00011493,2]
[355517169,1741228247460,-500.0,0.00011493,2]
[355517170,1741228247469,-537.14,0.00011493,2]
[355517171,1741228247478,-500.0,0.00011493,2]
[355517172,1741228247488,-500.0,0.00011493,2]
[355517173,1741228247498,-500.0,0.00011493,2]
[355517174,1741228247508,-533.37160488,0.00011493,2]
[355517175,1741228247518,-560.27543473,0.00011493,2]
[355517176,1741228247527,-495.68895042,0.00011493,2]
[355517177,1741228247538,-500.0,0.00011493,2]
[355517178,1741228247555,-512.97387741,0.00011493,2]
[355517179,1741228247568,-500.0,0.00011493,2]
[355517180,1741228247581,-540.73,0.00011493,2]
[355517181,1741228247592,-500.0,0.00011493,2]
[355517182,1741228247602,-500.0,0.00011493,2]
[355517183,1741228247611,-500.0,0.00011493,2]
[355517184,1741228247620,-500.0,0.00011493,2]
[355517185,1741228247629,-500.0,0.00011493,2]
[355517186,1741228247639,-500.0,0.00011493,2]
[355517187,1741228247648,-500.0,0.00011493,2]
[355517188,1741228247657,-500.0,0.00011493,2]
[355517189,1741228247667,-510.67741005,0.00011493,2]
[355517190,1741228247676,-500.0,0.00011493,2]
[355517191,1741228247685,-500.0,0.00011493,2]
[355517192,1741228247696,-503.37,0.00011493,2]
[355517193,1741228247705,-500.0,0.00011493,2]
[355517194,1741228247714,-500.0,0.00011493,2]
[355517195,1741228247724,-500.0,0.00011493,2]
[355517196,1741228247733,-500.0,0.00011493,2]
[355517197,1741228247743,-500.0,0.00011493,2]
[355517198,1741228247752,-500.0,0.00011493,2]
[355517199,1741228247762,-500.0,0.00011493,2]
[355517200,1741228247771,-606.39,0.00011493,2]
[355517201,1741228247780,-500.0,0.00011493,2]
[355517202,1741228247790,-500.0,0.00011493,2]
[355517203,1741228247802,-500.0,0.00011493,2]
[355517204,1741228247811,-276.76813235,0.00011493,2]
[355517205,1741228247821,-500.0,0.00011493,2]
[355517206,1741228247830,-500.0,0.00011493,2]
[355517207,1741228247839,-500.0,0.00011493,2]
[355517208,1741228247848,-500.0,0.00011493,2]
[355517209,1741228247858,-1839.23,0.00011493,2]
[355517210,1741228247868,-500.0,0.00011493,2]
[355517211,1741228247877,-538.87,0.00011493,2]
[355517212,1741228247886,-811.39,0.00011493,2]
[355517213,1741228247896,-500.0,0.00011493,2]
[355517214,1741228247905,-579.56,0.00011493,2]
[355517215,1741228247915,-500.0,0.00011493,2]
[355517216,1741228248113,-941.62,0.00011493,2]
[355517217,1741228248123,-740.47,0.00011493,2]
[355517218,1741228248133,-500.0,0.00011493,2]
[355517219,1741228248144,-500.0,0.00011493,2]
[355517220,1741228248154,-500.0,0.00011493,2]
[355517221,1741228248165,-609.27,0.00011493,2]
[355517222,1741228248175,-500.0,0.00011493,2]
[355517223,1741228248186,-1753.5,0.00011493,2]
[355517224,1741228248196,-510.37,0.00011493,2]
[355517225,1741228248206,-500.0,0.00011493,2]
[355517226,1741228248216,-500.0,0.00011493,2]
[355517227,1741228248226,-500.0,0.00011493,2]
[355517228,1741228248236,-1270.55,0.00011493,2]
[355517229,1741228248245,-648.24,0.00011493,2]
[355517230,1741228248255,-500.0,0.00011493,2]
[355517231,1741228248265,-500.0,0.00011493,2]
[355517232,1741228248275,-3500.9,0.00011493,2]
[355517233,1741228248284,-500.0,0.00011493,2]
[355517234,1741228248295,-872.2,0.00011493,2]
[355517235,1741228248305,-515.18009964,0.00011493,2]
[355517236,1741228248315,-650.96,0.00011493,2]
[355517237,1741228248325,-500.0,0.00011493,2]
[355517238,1741228248334,-500.0,0.00011493,2]
[355517239,1741228248344,-924.46,0.00011493,2]
[355517240,1741228248355,-2091.76,0.00011493,2]
[355517241,1741228248366,-612.27,0.00011493,2]
[355517242,1741228248376,-500.0,0.00011493,2]
[355517243,1741228248385,-660.47,0.00011493,2]
[355517244,1741228248395,-779.36,0.00011493,2]
[355517245,1741228248405,-1000.0,0.00011493,2]
[355517246,1741228248414,-500.0,0.00011493,2]
[355517247,1741228248423,-510.40568889,0.00011493,2]
[355517248,1741228248434,-1930.76,0.00011493,2]
[355517249,1741228248445,-738.53,0.00011493,2]
[355517250,1741228248455,-500.0,0.00011493,2]
[355517251,1741228248464,-500.0,0.00011493,2]
[355517252,1741228248474,-500.0,0.00011493,2]
[355517253,1741228248484,-503.09732235,0.00011493,2]
[355517254,1741228248493,-500.0,0.00011493,2]
[355517255,1741228248503,-1436.59,0.00011493,2]
[355517256,1741228248512,-500.0,0.00011493,2]
[355517257,1741228248521,-613.71,0.00011493,2]
[355517258,1741228248530,-594.34,0.00011493,2]
[355517259,1741228248539,-500.44,0.00011493,2]
[355517260,1741228248551,-500.0,0.00011493,2]
[355517261,1741228248561,-1057.98,0.00011493,2]
[355517262,1741228248571,-500.0,0.00011493,2]
[355517263,1741228248580,-713.63,0.00011493,2]
[355517264,1741228248590,-500.0,0.00011493,2]
[355517265,1741228248600,-500.0,0.00011493,2]
[355517266,1741228248609,-537.25,0.00011493,2]
[355517267,1741228248618,-560.64,0.00011493,2]
[355517268,1741228248627,-500.0,0.00011493,2]
[355517269,1741228248637,-500.0,0.00011493,2]
[355517270,1741228248646,-645.15,0.00011493,2]
[355517271,1741228248655,-782.61,0.00011493,2]
[355517272,1741228248665,-500.0,0.00011493,2]
[355517273,1741228248675,-905.87,0.00011493,2]
[355517274,1741228248684,-500.0,0.00011493,2]
[355517275,1741228248694,-675.13,0.00011493,2]
[355517276,1741228248704,-755.9,0.00011493,2]
[355517277,1741228248713,-1592.75,0.00011493,2]
[355517278,1741228248723,-500.0,0.00011493,2]
[355517279,1741228248733,-514.5,0.00011493,2]
[355517280,1741228248742,-500.0,0.00011493,2]
[355517281,1741228248751,-1320.47,0.00011493,2]
[355517282,1741228248761,-500.0,0.00011493,2]
[355517283,1741228248770,-10032.54,0.00011493,2]
[355517284,1741228248780,-1651.25,0.00011493,2]
[355517285,1741228248789,-500.0,0.00011493,2]
[355517286,1741228248800,-500.0,0.00011493,2]
[355517287,1741228248810,-500.0,0.00011493,2]
[355517288,1741228248819,-4894.0,0.00011493,2]
[355517289,1741228248829,-566.83,0.00011493,2]
[355517290,1741228248838,-500.0,0.00011493,2]
[355517291,1741228248847,-877.1,0.00011493,2]
[355517292,1741228248857,-1740.45,0.00011493,2]
[355517293,1741228248866,-513.58368778,0.00011493,2]
[355517294,1741228248876,-714.73,0.00011493,2]
[355517295,1741228248885,-500.0,0.00011493,2]
[355517296,1741228248894,-1594.49,0.00011493,2]
[355517297,1741228248904,-500.0,0.00011493,2]
[355517298,1741228248914,-500.0,0.00011493,2]
[355517299,1741228248923,-11098.94,0.00011493,2]
[355517300,1741228248932,-500.0,0.00011493,2]
[355517301,1741228248941,-500.0,0.00011493,2]
[355517302,1741228248950,-418.96376481,0.00011494,2]
[355517303,1741228248960,-502.46989229,0.00011494,2]